bitfinex/quotes_BTCUSD_20240723
["timestamp","ask_amount","ask_price","bid_price","bid_amount"]
[1721695382088,0.58791202,67766.0,67765.0,1.17597868]
[1721695382543,0.58091202,67766.0,67765.0,0.88084168]
[1721695382769,0.5807918,67766.0,67765.0,0.88084168]
[1721695383232,0.6568918,67766.0,67765.0,0.58570468]
[1721695383450,0.6568918,67766.0,67765.0,0.88084168]
[1721695383687,0.6578918,67766.0,67765.0,0.88084168]
[1721695383933,0.6538918,67766.0,67765.0,0.88084168]
[1721695384145,0.5777918,67766.0,67765.0,1.17597868]
[1721695384368,0.5777918,67766.0,67765.0,1.17693683]
[1721695384369,0.5787918,67766.0,67765.0,1.17693683]
[1721695384609,0.3633553,67766.0,67765.0,1.17693683]
[1721695384831,0.31283163,67766.0,67765.0,1.17693683]
[1721695385035,0.51283163,67766.0,67765.0,1.17693683]
[1721695385241,0.5633553,67766.0,67765.0,1.17693683]
[1721695385434,0.3633553,67766.0,67765.0,1.17693683]
[1721695385681,0.5633553,67766.0,67765.0,1.17693683]
[1721695385861,0.70893823,67766.0,67765.0,1.17693683]
[1721695386070,0.55948257,67766.0,67765.0,1.17693683]
[1721695386279,0.70893822,67766.0,67765.0,1.17693683]
[1721695388290,0.55948256,67766.0,67765.0,1.17693683]
[1721695388908,0.46699688,67766.0,67765.0,1.17693683]
[1721695389113,0.46699688,67766.0,67765.0,0.14766768]
[1721695389114,0.85839397,67766.0,67765.0,0.14766768]
[1721695389310,0.6165863,67766.0,67765.0,0.44280468]
[1721695389523,0.70871015,67766.0,67765.0,0.73794168]
[1721695389731,0.70871015,67766.0,67765.0,0.44280468]
[1721695389932,0.63522073,67766.0,67765.0,0.73794168]
[1721695390157,0.63422073,67766.0,67765.0,0.73794168]
[1721695390539,0.55812073,67766.0,67765.0,0.73794168]
[1721695390766,0.55812073,67766.0,67765.0,0.81704168]
[1721695390971,0.7065348,67766.0,67765.0,0.81704168]
[1721695391402,0.7075348,67766.0,67765.0,0.87764168]
[1721695391603,0.7065348,67766.0,67765.0,0.87764168]
[1721695391807,0.70652718,67766.0,67765.0,0.87764168]
[1721695392091,0.55911403,67766.0,67765.0,0.87764168]
[1721695392238,0.70852186,67766.0,67765.0,0.87764168]
[1721695392894,0.70952186,67766.0,67765.0,0.87764168]
[1721695393092,0.56011403,67766.0,67765.0,0.87764168]
[1721695393291,0.70951478,67766.0,67765.0,0.87764168]
[1721695393748,0.70951462,67766.0,67765.0,0.87764168]
[1721695394137,0.56011403,67766.0,67765.0,0.87764168]
[1721695394349,0.70951173,67766.0,67765.0,0.87764168]
[1721695395222,0.70951173,67766.0,67765.0,0.44280468]
[1721695395223,0.56020297,67766.0,67765.0,0.44280468]
[1721695395847,0.70959471,67766.0,67765.0,0.44280468]
[1721695396058,0.56020297,67766.0,67765.0,0.44280468]
[1721695396270,0.56020297,67766.0,67765.0,0.73794168]
[1721695396476,0.70959101,67766.0,67765.0,0.73794168]
[1721695396692,0.70958843,67766.0,67765.0,0.73794168]
[1721695397150,0.56020297,67766.0,67765.0,0.73794168]
[1721695397347,0.70958843,67766.0,67765.0,0.73794168]
[1721695397709,0.50958843,67766.0,67765.0,0.73794168]
[1721695397914,0.70958843,67766.0,67765.0,0.73794168]
[1721695398418,0.56114484,67766.0,67765.0,0.73794168]
[1721695398649,0.56114484,67766.0,67765.0,0.87524168]
[1721695401497,0.56121045,67766.0,67765.0,0.87524168]
[1721695401902,0.56096606,67766.0,67765.0,0.87524168]
[1721695404454,0.56143208,67766.0,67765.0,0.87524168]
[1721695404915,0.52867495,67766.0,67765.0,0.87619983]
[1721695405311,0.56143208,67766.0,67765.0,0.87619983]
[1721695407620,0.5615594,67766.0,67765.0,0.87619983]
[1721695408235,0.52880227,67766.0,67765.0,0.87619983]
[1721695409706,0.5615594,67766.0,67765.0,0.87619983]
[1721695410718,0.56151451,67766.0,67765.0,0.87619983]
[1721695411159,0.56151461,67766.0,67765.0,0.87619983]
[1721695412012,0.36151461,67766.0,67765.0,0.87619983]
[1721695412219,0.56151461,67766.0,67765.0,0.87619983]
[1721695412636,0.71092508,67766.0,67765.0,0.87619983]
[1721695413861,0.46699688,67766.0,67765.0,0.87619983]
[1721695414057,0.7110337,67766.0,67765.0,0.44376283]
[1721695414545,0.56156435,67766.0,67765.0,0.44376283]
[1721695414776,0.56156435,67766.0,67765.0,0.73889983]
[1721695415476,0.56156435,67766.0,67765.0,0.44376283]
[1721695415723,0.56156435,67766.0,67765.0,0.44280468]
[1721695416205,0.56156435,67766.0,67765.0,0.44376283]
[1721695417112,0.56142363,67766.0,67765.0,0.44376283]
[1721695417686,0.36142363,67766.0,67765.0,1.11723683]
[1721695417920,0.1286665,67766.0,67765.0,1.17723683]
[1721695418161,0.1286665,67766.0,67765.0,1.54847383]
[1721695418162,0.25243619,67766.0,67765.0,1.54847383]
[1721695418408,0.02510975,67766.0,67765.0,1.54847383]
[1721695418919,0.12087266,67766.0,67765.0,1.54847383]
[1721695419166,0.11987266,67766.0,67765.0,1.54847383]
[1721695419422,0.02310975,67766.0,67765.0,1.54847383]
[1721695419668,0.02510975,67766.0,67765.0,1.54847383]
[1721695420167,0.15798791,67766.0,67765.0,1.54847383]
[1721695420439,0.25461507,67766.0,67765.0,1.54847383]
[1721695420671,0.2873722,67766.0,67765.0,1.47237383]
[1721695420908,0.28736618,67766.0,67765.0,1.17723683]
[1721695421167,0.12173691,67766.0,67765.0,1.17723683]
[1721695421418,0.25460065,67766.0,67765.0,1.17723683]
[1721695421907,0.12173691,67766.0,67765.0,1.17723683]
[1721695422661,0.25459657,67766.0,67765.0,1.47237383]
[1721695423161,0.12193261,67766.0,67765.0,1.47237383]
[1721695423425,0.02510975,67766.0,67765.0,1.47237383]
[1721695423906,0.12193225,67766.0,67765.0,1.47237383]
[1721695424597,0.02510975,67766.0,67765.0,1.47237383]
[1721695425868,0.02510975,67766.0,67765.0,0.29523668]
[1721695425869,0.25786688,67766.0,67765.0,0.29523668]
[1721695426150,0.96989995,67766.0,67765.0,9.968e-05]
[1721695426377,0.62095244,67766.0,67765.0,9.968e-05]
[1721695426608,0.89330002,67766.0,67765.0,9.968e-05]
[1721695426872,0.61995244,67766.0,67765.0,0.00409968]
[1721695427127,0.62095244,67766.0,67765.0,0.00409968]
[1721695427361,1.35805037,67766.0,67765.0,0.00409968]
[1721695427620,1.82781456,67766.0,67765.0,0.00409968]
[1721695427889,1.53268156,67766.0,67765.0,0.00409968]
[1721695428372,1.53168156,67766.0,67765.0,9.968e-05]
[1721695428621,1.58200136,67766.0,67765.0,9.968e-05]
[1721695428873,1.58300136,67766.0,67765.0,9.968e-05]
[1721695429123,1.5840433,67766.0,67765.0,0.00309968]
[1721695429350,1.5810433,67766.0,67765.0,9.968e-05]
[1721695429567,1.5890433,67766.0,67765.0,9.968e-05]
[1721695429748,1.5940433,67766.0,67765.0,9.968e-05]
[1721695429980,1.1855905,67766.0,67765.0,9.968e-05]
[1721695430421,1.1034575,67766.0,67765.0,9.968e-05]
[1721695430633,1.34994924,67766.0,67765.0,9.968e-05]
[1721695430842,1.3985905,67766.0,67765.0,9.968e-05]
[1721695432140,1.3974281,67766.0,67765.0,9.968e-05]
[1721695432947,1.1022951,67766.0,67765.0,9.968e-05]
[1721695433152,1.05365384,67766.0,67765.0,9.968e-05]
[1721695433770,1.06910214,67766.0,67765.0,9.968e-05]
[1721695435726,0.85048118,67766.0,67765.0,9.968e-05]
[1721695435937,1.06920721,67766.0,67765.0,9.968e-05]
[1721695436873,1.36434021,67766.0,67765.0,9.968e-05]
[1721695437088,1.55994412,67766.0,67765.0,9.968e-05]
[1721695437296,1.85487851,67766.0,67765.0,9.968e-05]
[1721695438398,1.85326488,67766.0,67765.0,9.968e-05]
[1721695439004,1.90326488,67766.0,67765.0,9.968e-05]
[1721695439216,1.85326488,67766.0,67765.0,9.968e-05]
[1721695440270,1.70630223,67766.0,67765.0,9.968e-05]
[1721695440479,1.53320098,67766.0,67765.0,9.968e-05]
[1721695440898,1.53252036,67766.0,67765.0,9.968e-05]
[1721695442457,2.66377342,67766.0,67765.0,9.968e-05]
[1721695443615,2.57200024,67766.0,67765.0,9.968e-05]
[1721695443849,2.66378547,67766.0,67765.0,9.968e-05]
[1721695445333,2.86074812,67766.0,67765.0,9.968e-05]
[1721695445591,3.44911958,67766.0,67765.0,9.968e-05]
[1721695446563,3.4485758,67766.0,67765.0,9.968e-05]
[1721695446830,3.27704712,67766.0,67765.0,9.968e-05]
[1721695447033,3.49193121,67766.0,67765.0,9.968e-05]
[1721695447250,3.27704712,67766.0,67765.0,9.968e-05]
[1721695447468,3.49193149,67766.0,67765.0,9.968e-05]
[1721695448153,3.34496884,67766.0,67765.0,9.968e-05]
[1721695449904,3.13008447,67766.0,67765.0,9.968e-05]
[1721695450115,3.34468902,67766.0,67765.0,9.968e-05]
[1721695450328,3.30133459,67766.0,67765.0,9.968e-05]
[1721695451004,3.21857746,67766.0,67765.0,9.968e-05]
[1721695451231,3.44829724,67766.0,67765.0,9.968e-05]
[1721695451453,3.30133459,67766.0,67765.0,9.968e-05]
[1721695452516,3.34468902,67766.0,67765.0,9.968e-05]
[1721695452948,3.13008447,67766.0,67765.0,9.968e-05]
[1721695453184,3.34393362,67766.0,67765.0,9.968e-05]
[1721695456093,3.34227862,67766.0,67765.0,9.968e-05]
[1721695456813,3.48924127,67766.0,67765.0,9.968e-05]
[1721695458407,3.44588684,67766.0,67765.0,9.968e-05]
[1721695458823,3.34227862,67766.0,67765.0,9.968e-05]
[1721695459031,3.25952149,67766.0,67765.0,9.968e-05]
[1721695459247,3.13008447,67766.0,67765.0,9.968e-05]
[1721695459466,3.34137053,67766.0,67765.0,9.968e-05]
[1721695459679,3.25200659,67766.0,67765.0,9.968e-05]
[1721695459893,3.21560253,67766.0,67765.0,9.968e-05]
[1721695460100,2.83118481,67766.0,67765.0,9.968e-05]
[1721695460310,2.68868481,67766.0,67765.0,9.968e-05]
[1721695460946,2.70592768,67766.0,67765.0,9.968e-05]
[1721695461157,2.68868481,67766.0,67765.0,9.968e-05]
[1721695461368,2.48868481,67766.0,67765.0,9.968e-05]
[1721695461579,2.68868481,67766.0,67765.0,9.968e-05]
[1721695462440,2.69055796,67766.0,67765.0,9.968e-05]
[1721695463069,2.64300301,67766.0,67765.0,9.968e-05]
[1721695463724,2.78996566,67766.0,67765.0,9.968e-05]
[1721695464373,3.26729866,67766.0,67765.0,9.968e-05]
[1721695464584,3.33109866,67766.0,67765.0,9.968e-05]
[1721695465001,3.37369631,67766.0,67765.0,9.968e-05]
[1721695465204,3.42273816,67766.0,67765.0,9.968e-05]
[1721695465421,3.23223539,67766.0,67765.0,9.968e-05]
[1721695465648,3.44577475,67766.0,67765.0,9.968e-05]
[1721695466715,3.48912918,67766.0,67765.0,9.968e-05]
[1721695467333,3.34216653,67766.0,67765.0,9.968e-05]
[1721695468469,3.08527274,67766.0,67765.0,9.968e-05]
[1721695468627,3.29817993,67766.0,67765.0,9.968e-05]
[1721695470270,3.28710287,67766.0,67765.0,9.968e-05]
[1721695471235,3.0694228,67766.0,67765.0,9.968e-05]
[1721695471640,3.15973311,67766.0,67765.0,9.968e-05]
[1721695471803,3.19249024,67766.0,67765.0,9.968e-05]
[1721695472033,3.24249031,67766.0,67765.0,9.968e-05]
[1721695472240,3.15973318,67766.0,67765.0,9.968e-05]
[1721695472458,3.24249031,67766.0,67765.0,9.968e-05]
[1721695473056,3.38945296,67766.0,67765.0,9.968e-05]
[1721695473697,3.53395296,67766.0,67765.0,9.968e-05]
[1721695474832,3.5326283,67766.0,67765.0,9.968e-05]
[1721695477556,2.71513367,67766.0,67765.0,9.968e-05]
[1721695477771,2.7739908,67766.0,67765.0,9.968e-05]
[1721695477975,2.82867398,67766.0,67765.0,9.968e-05]
[1721695478186,2.77867398,67766.0,67765.0,9.968e-05]
[1721695479482,2.82867398,67766.0,67765.0,9.968e-05]
[1721695481239,2.89752112,67766.0,67765.0,9.968e-05]
[1721695481384,3.24876735,67766.0,67765.0,9.968e-05]
[1721695481585,3.56690035,67766.0,67765.0,9.968e-05]
[1721695481793,3.27176735,67766.0,67765.0,9.968e-05]
[1721695482647,3.20416674,67766.0,67765.0,9.968e-05]
[1721695483100,3.06686674,67766.0,67765.0,9.968e-05]
[1721695483775,3.36199974,67766.0,67765.0,9.968e-05]
[1721695483992,3.14452186,67766.0,67765.0,9.968e-05]
[1721695484204,3.35778615,67766.0,67765.0,9.968e-05]
[1721695484639,3.35778614,67766.0,67765.0,9.968e-05]
[1721695484863,3.50474879,67766.0,67765.0,9.968e-05]
[1721695485451,3.41440405,67766.0,67765.0,9.968e-05]
[1721695485785,4.50823705,67766.0,67765.0,9.968e-05]
[1721695485988,4.65801683,67766.0,67765.0,3.162e-05]
[1721695486189,4.89803372,67766.0,67765.0,3.162e-05]
[1721695486395,4.70177451,67766.0,67765.0,3.162e-05]
[1721695486815,4.92879103,67766.0,67765.0,3.162e-05]
[1721695487029,4.54760747,67766.0,67765.0,3.162e-05]
[1721695487236,4.45407001,67766.0,67765.0,3.162e-05]
[1721695487838,4.46807001,67766.0,67765.0,3.162e-05]
[1721695490176,4.4683569,67766.0,67765.0,3.162e-05]
[1721695493299,4.47130677,67766.0,67765.0,3.162e-05]
[1721695493671,4.61826942,67766.0,67765.0,3.162e-05]
[1721695496389,4.52961068,67766.0,67765.0,3.162e-05]
[1721695496601,4.61691599,67766.0,67765.0,3.162e-05]
[1721695496820,4.61691599,67766.0,67765.0,0.00427422]
[1721695497922,4.39385334,67766.0,67765.0,0.00427422]
[1721695498141,4.46995334,67766.0,67765.0,0.00427422]
[1721695499419,4.26301012,67766.0,67765.0,0.00427422]
[1721695499621,4.47207817,67766.0,67765.0,0.00427422]
[1721695500854,3.20494517,67766.0,67765.0,0.00427422]
[1721695501056,3.17824517,67766.0,67765.0,0.07037422]
[1721695501256,3.37824517,67766.0,67765.0,0.00427422]
[1721695501455,3.17824517,67766.0,67765.0,0.00427422]
[1721695501657,3.38002735,67766.0,67765.0,0.00427422]
[1721695501859,3.2809855,67766.0,67765.0,0.00427422]
[1721695502084,2.68009537,67766.0,67765.0,0.00427422]
[1721695502230,2.9128525,67766.0,67765.0,0.14557422]
[1721695502432,3.44210489,67766.0,67765.0,0.00427422]
[1721695502641,3.57260489,67766.0,67765.0,0.00427422]
[1721695503527,3.46052735,67766.0,67765.0,0.00427422]
[1721695504638,3.24967712,67766.0,67765.0,0.00427422]
[1721695504858,3.40162428,67766.0,67765.0,0.00427422]
[1721695505072,2.64883805,67766.0,67765.0,0.00427422]
[1721695505300,2.95388521,67766.0,67765.0,0.14677422]
[1721695506394,2.83898083,67766.0,67765.0,0.14677422]
[1721695506615,2.79100925,67766.0,67765.0,0.14677422]
[1721695506825,2.84100925,67766.0,67765.0,0.14677422]
[1721695507036,2.86400925,67766.0,67765.0,0.14677422]
[1721695507462,2.81400925,67766.0,67765.0,0.14677422]
[1721695507703,2.61003367,67766.0,67765.0,0.14677422]
[1721695507938,2.80129916,67766.0,67765.0,0.14677422]
[1721695508152,2.81529916,67766.0,67765.0,0.14677422]
[1721695509250,2.85129916,67766.0,67765.0,0.14677422]
[1721695509461,2.86429916,67766.0,67765.0,0.14677422]
[1721695509879,2.81429916,67766.0,67765.0,0.14677422]
[1721695510064,3.03230121,67766.0,67765.0,0.14677422]
[1721695510277,2.81429916,67766.0,67765.0,0.14677422]
[1721695510486,3.03230439,67766.0,67765.0,0.14677422]
[1721695510905,2.20066964,67766.0,67765.0,0.14677422]
[1721695511122,2.20066944,67766.0,67765.0,0.14677422]
[1721695512412,2.49580244,67766.0,67765.0,0.14677422]
[1721695512907,2.71380777,67766.0,67765.0,0.14677422]
[1721695513773,2.29090067,67766.0,67765.0,0.14677422]
[1721695513979,2.49501641,67766.0,67765.0,0.14677422]
[1721695516968,2.49481203,67766.0,67765.0,0.14677422]
[1721695517374,1.36355897,67766.0,67765.0,0.14677422]
[1721695517736,1.61609432,67766.0,67765.0,0.14677422]
[1721695517950,1.65869197,67766.0,67765.0,0.14677422]
[1721695518153,1.36355897,67766.0,67765.0,0.14677422]
[1721695518428,1.43704839,67766.0,67765.0,0.14677422]
[1721695520085,1.43645087,67766.0,67765.0,0.14677422]
[1721695520478,1.43695553,67766.0,67765.0,0.14677422]
[1721695522508,1.81118853,67766.0,67765.0,0.00427422]
[1721695522708,1.88418853,67766.0,67765.0,0.00427422]
[1721695523084,1.88382078,67766.0,67765.0,0.00427422]
[1721695523759,1.80472078,67766.0,67765.0,0.00427422]
[1721695523936,1.75472078,67766.0,67765.0,0.00427422]
[1721695524138,1.78072078,67766.0,67765.0,0.00427422]
[1721695525232,1.73072078,67766.0,67765.0,0.00427422]
[1721695525477,1.65723136,67766.0,67765.0,0.06627422]
[1721695525718,1.36209836,67766.0,67765.0,0.07560464]
[1721695525938,1.43558778,67766.0,67765.0,0.07560464]
[1721695526397,1.43558778,67766.0,67765.0,0.06627422]
[1721695526624,1.73072078,67766.0,67765.0,0.06627422]
[1721695527151,1.73072078,67766.0,67765.0,0.00427422]
[1721695532306,1.73092491,67766.0,67765.0,0.00427422]
[1721695532760,1.73090919,67766.0,67765.0,0.00427422]
[1721695533182,1.65480919,67766.0,67765.0,0.00427422]
[1721695533415,1.28618677,67766.0,67765.0,0.14407422]
[1721695533622,0.77699012,67766.0,67765.0,0.14407422]
[1721695533828,0.72455612,67766.0,67765.0,0.14407422]
[1721695534262,0.77699012,67766.0,67765.0,0.14407422]
[1721695534746,0.57699012,67766.0,67765.0,0.14407422]
[1721695534962,0.76399012,67766.0,67765.0,0.14407422]
[1721695535209,0.76399012,67766.0,67765.0,0.58773737]
[1721695535210,0.52311029,67766.0,67765.0,0.58773737]
[1721695535428,0.68642761,67766.0,67765.0,0.58773737]
[1721695535645,0.53695467,67766.0,67765.0,0.58773737]
[1721695535915,0.5697118,67766.0,67765.0,0.58773737]
[1721695536164,0.5567118,67766.0,67765.0,0.58773737]
[1721695536415,0.5577118,67766.0,67765.0,0.58773737]
[1721695536608,0.32495467,67766.0,67765.0,0.58773737]
[1721695536916,0.3567118,67766.0,67765.0,0.58773737]
[1721695537380,0.5567118,67766.0,67765.0,0.58773737]
[1721695538097,0.5577118,67766.0,67765.0,0.58773737]
[1721695538376,0.5587118,67766.0,67765.0,0.58773737]
[1721695538598,0.55879758,67766.0,67765.0,0.58773737]
[1721695539888,0.55879758,67766.0,67765.0,0.88287437]
[1721695540384,0.52688045,67766.0,67765.0,0.88287437]
[1721695541616,0.52719502,67766.0,67765.0,0.88287437]
[1721695541867,0.65988902,67766.0,67765.0,0.88287437]
[1721695542113,0.69264621,67766.0,67765.0,0.58773737]
[1721695542341,0.55995215,67766.0,67765.0,0.88287437]
[1721695542589,0.55995215,67766.0,67765.0,0.58773737]
[1721695543308,0.55995215,67766.0,67765.0,0.88287437]
[1721695543574,0.67719234,67766.0,67765.0,0.88287437]
[1721695543808,0.02488553,67766.0,67765.0,1.17801137]
[1721695545074,0.02488553,67766.0,67765.0,1.47314837]
[1721695545304,0.069172,67766.0,67765.0,1.17801137]
[1721695545529,0.00284,67766.0,67765.0,1.47314837]
[1721695546493,0.00284,67766.0,67765.0,1.52314837]
[1721695546987,0.00184,67766.0,67765.0,1.47314837]
[1721695547704,0.00084,67766.0,67765.0,1.47314837]
[1721695547962,0.00084,67766.0,67765.0,1.47914837]
[1721695547963,0.00184,67766.0,67765.0,1.47914837]
[1721695548194,0.00284,67766.0,67765.0,1.48514837]
[1721695555778,0.00184,67766.0,67765.0,1.47914837]
[1721695555991,0.00084,67766.0,67765.0,1.47314837]
[1721695556400,0.00184,67766.0,67765.0,1.47914837]
[1721695557006,0.00284,67766.0,67765.0,1.49314837]
[1721695557541,0.00184,67766.0,67765.0,1.18401137]
[1721695557752,0.03459713,67766.0,67765.0,1.18401137]
[1721695557966,0.03559713,67766.0,67765.0,1.19801137]
[1721695558147,0.03459713,67766.0,67765.0,1.19201137]
[1721695558495,0.03359713,67766.0,67765.0,1.19201137]
[1721695558926,0.03359713,67766.0,67765.0,1.20601137]
[1721695562056,0.00084,67766.0,67765.0,1.28211137]
[1721695563089,0.03359713,67766.0,67765.0,1.28211137]
[1721695565390,0.00084,67766.0,67765.0,1.28211137]
[1721695569352,0.00084,67766.0,67765.0,1.26811137]
[1721695569818,0.00184,67766.0,67765.0,1.28211137]
[1721695570116,0.00184,67766.0,67765.0,1.26811137]
[1721695570451,0.00284,67766.0,67765.0,1.28211137]
[1721695571151,0.00284,67766.0,67765.0,1.28949137]
[1721695571884,0.03559713,67766.0,67765.0,0.85605437]
[1721695572126,0.03559713,67766.0,67765.0,0.48331737]
[1721695572127,0.11429713,67766.0,67765.0,0.48331737]
[1721695572358,0.15844078,67766.0,67765.0,0.77845437]
[1721695572585,0.11429713,67766.0,67765.0,0.77845437]
[1721695573544,0.11429713,67766.0,67765.0,0.48331737]
[1721695573772,0.28768852,67766.0,67765.0,0.18818037]
[1721695574038,0.28339337,67766.0,67765.0,0.48331737]
[1721695574725,0.28239337,67766.0,67765.0,0.46931737]
[1721695574951,0.28239337,67766.0,67765.0,0.48331737]
[1721695574952,0.28348964,67766.0,67765.0,0.48331737]
[1721695575428,0.28348964,67766.0,67765.0,0.03965422]
[1721695575429,0.5635718,67766.0,67765.0,0.03965422]
[1721695575639,0.72618864,67766.0,67765.0,0.03965422]
[1721695576056,0.72518864,67766.0,67765.0,0.02565422]
[1721695576279,0.72618864,67766.0,67765.0,0.03965422]
[1721695576526,0.80128864,67766.0,67765.0,0.02565422]
[1721695576913,0.80328864,67766.0,67765.0,0.01165422]
[1721695577342,0.80528864,67766.0,67765.0,0.01165422]
[1721695577548,0.77253151,67766.0,67765.0,0.01165422]
[1721695577795,0.68644308,67766.0,67765.0,0.01165422]
[1721695578013,0.92368922,67766.0,67765.0,0.01165422]
[1721695578448,0.77460854,67766.0,67765.0,0.01165422]
[1721695579314,0.80736567,67766.0,67765.0,0.01165422]
[1721695579937,1.10249867,67766.0,67765.0,0.01165422]
[1721695581028,1.10246935,67766.0,67765.0,0.01165422]
[1721695581246,0.80733635,67766.0,67765.0,0.01165422]
[1721695581461,0.80734967,67766.0,67765.0,0.01165422]
[1721695582694,1.00734967,67766.0,67765.0,0.01165422]
[1721695583451,0.80734967,67766.0,67765.0,0.01165422]
[1721695583610,0.51221667,67766.0,67765.0,0.01165422]
[1721695583963,0.71221667,67766.0,67765.0,0.01165422]
[1721695584168,1.00766534,67766.0,67765.0,0.01165422]
[1721695587188,0.92320021,67766.0,67765.0,0.01165422]
[1721695587392,1.00772783,67766.0,67765.0,0.01165422]
[1721695588212,0.51259483,67766.0,67765.0,0.01165422]
[1721695588460,0.71259483,67766.0,67765.0,0.01165422]
[1721695588672,0.34822883,67766.0,67765.0,0.30774937]
[1721695588917,0.48074706,67766.0,67765.0,0.48720531]
[1721695589129,0.34822883,67766.0,67765.0,0.78234231]
[1721695589595,0.34522883,67766.0,67765.0,0.48720531]
[1721695589805,0.34122883,67766.0,67765.0,0.78234231]
[1721695590015,0.34122883,67766.0,67765.0,0.78434231]
[1721695590255,0.34165392,67766.0,67765.0,0.78234231]
[1721695590462,0.34165392,67766.0,67765.0,0.78634231]
[1721695590695,0.25670121,67766.0,67765.0,0.78634231]
[1721695591108,0.25670121,67766.0,67765.0,0.78934231]
[1721695592395,0.25670121,67766.0,67765.0,1.08447931]
[1721695592396,0.02394408,67766.0,67765.0,1.08447931]
[1721695592605,0.13436693,67766.0,67765.0,1.29977931]
[1721695592831,0.00084,67766.0,67765.0,1.29977931]
[1721695593050,0.08917553,67766.0,67765.0,1.29977931]
[1721695593303,0.08917553,67766.0,67765.0,1.22367931]
[1721695593525,0.12193266,67766.0,67765.0,1.22367931]
[1721695593748,0.12193858,67766.0,67765.0,1.19179137]
[1721695595460,0.03359713,67766.0,67765.0,1.19179137]
[1721695595675,0.00084,67766.0,67765.0,1.19179137]
[1721695595959,0.08919495,67766.0,67765.0,1.19179137]
[1721695596174,0.00084,67766.0,67765.0,1.19179137]
[1721695596391,0.04501476,67766.0,67765.0,1.19179137]
[1721695596602,0.04501476,67766.0,67765.0,1.48692837]
[1721695596811,0.04501476,67766.0,67765.0,1.19179137]
[1721695597255,0.04501476,67766.0,67765.0,1.47992837]
[1721695597256,0.00084,67766.0,67765.0,1.47992837]
[1721695597467,0.04501476,67766.0,67765.0,1.47992837]
[1721695597680,0.04501476,67766.0,67765.0,1.49992837]
[1721695597681,0.04601476,67766.0,67765.0,1.49992837]
[1721695598132,0.00184,67766.0,67765.0,1.49992837]
[1721695598351,0.00184,67766.0,67765.0,1.20479137]
[1721695598604,0.04602504,67766.0,67765.0,1.20479137]
[1721695598840,0.00184,67766.0,67765.0,1.20479137]
[1721695601439,0.06811726,67766.0,67765.0,1.49992837]
[1721695602518,0.06813558,67766.0,67765.0,1.49992837]
[1721695605595,0.06814804,67766.0,67765.0,1.49992837]
[1721695606033,0.0681491,67766.0,67765.0,1.49992837]
[1721695606248,0.00184,67766.0,67765.0,1.54992837]
[1721695606663,0.0460452,67766.0,67765.0,1.54992837]
[1721695606898,0.00184,67766.0,67765.0,1.54992837]
[1721695607108,0.0460452,67766.0,67765.0,1.54992837]
[1721695607318,0.00184,67766.0,67765.0,1.54992837]
[1721695608125,0.00184,67766.0,67765.0,1.84506537]
[1721695609039,0.00184,67766.0,67765.0,1.86230824]
[1721695609252,0.00184,67766.0,67765.0,1.84506537]
[1721695609496,0.00184,67766.0,67765.0,1.86230824]
[1721695609714,0.00184,67766.0,67765.0,1.84506537]
[1721695610980,0.00184,67766.0,67765.0,1.86230824]
[1721695611240,0.00184,67766.0,67765.0,1.49992837]
[1721695611423,0.00184,67766.0,67765.0,1.62602837]
[1721695611663,0.00084,67766.0,67765.0,1.61702837]
[1721695612081,0.00184,67766.0,67765.0,1.63102837]
[1721695612485,0.00084,67766.0,67765.0,1.60602837]
[1721695612725,0.00084,67766.0,67765.0,1.91516537]
[1721695612930,0.00084,67766.0,67765.0,1.92916537]
[1721695612931,0.00184,67766.0,67765.0,1.92916537]
[1721695615554,0.00184,67766.0,67765.0,1.58402837]
[1721695615952,0.00184,67766.0,67765.0,1.87916537]
[1721695618085,0.00184,67766.0,67765.0,1.92916537]
[1721695618291,0.00184,67766.0,67765.0,1.87916537]
[1721695618489,0.00184,67766.0,67765.0,1.58402837]
[1721695618721,0.00184,67766.0,67765.0,1.63402837]
[1721695618894,0.00184,67766.0,67765.0,1.58402837]
[1721695621378,0.00184,67766.0,67765.0,1.94640824]
[1721695621594,0.00184,67766.0,67765.0,2.11940824]
[1721695621821,0.00084,67776.0,67775.0,1.90701802]
[1721695622034,0.00084,67776.0,67775.0,2.00701802]
[1721695622472,0.00084,67776.0,67775.0,2.05701802]
[1721695622696,0.00084,67776.0,67775.0,2.37511202]
[1721695622930,0.04414932,67789.0,67788.0,1.32862415]
[1721695623166,0.135145,67796.0,67789.0,0.44350715]
[1721695623167,0.04414932,67790.0,67789.0,0.44350715]
[1721695623381,0.18637332,67796.0,67789.0,0.44350715]
[1721695623382,0.076,67796.0,67795.0,0.44346815]
[1721695623598,0.09909468,67796.0,67795.0,1.07782897]
[1721695624056,0.076,67796.0,67795.0,1.07782897]
[1721695624945,0.06618059,67796.0,67795.0,0.93032597]
[1721695625164,0.03359713,67797.0,67796.0,0.73846315]
[1721695625165,0.08908111,67797.0,67796.0,0.73846315]
[1721695625396,0.06699435,67797.0,67796.0,1.05064501]
[1721695625601,0.00084,67797.0,67796.0,1.05064501]
[1721695626226,0.03359713,67797.0,67796.0,1.05064501]
[1721695626693,0.07769433,67797.0,67796.0,1.05064501]
[1721695626921,0.09973862,67797.0,67796.0,1.05064501]
[1721695627147,0.00084,67797.0,67796.0,1.05064501]
[1721695627379,0.04492947,67797.0,67796.0,1.05064501]
[1721695627660,0.00084,67797.0,67796.0,1.05064501]
[1721695628360,0.00084,67797.0,67796.0,1.12674501]
[1721695628644,0.00084,67797.0,67796.0,1.05064501]
[1721695629874,0.00084,67797.0,67796.0,1.05164501]
[1721695630099,0.00084,67797.0,67796.0,1.05064501]
[1721695631574,0.00084,67797.0,67796.0,1.34764701]
[1721695631800,0.00084,67797.0,67796.0,1.34564701]
[1721695632030,0.00084,67797.0,67796.0,1.34864701]
[1721695632268,0.00084,67797.0,67796.0,1.34964701]
[1721695632763,0.00084,67797.0,67796.0,1.88834901]
[1721695632999,0.00084,67797.0,67796.0,2.32359388]
[1721695633473,0.00084,67797.0,67796.0,2.32059388]
[1721695633955,0.00084,67797.0,67796.0,2.31959388]
[1721695634182,0.00084,67802.0,67801.0,2.11167102]
[1721695634414,0.00084,67802.0,67801.0,2.37837102]
[1721695635856,0.00084,67802.0,67801.0,2.39237102]
[1721695636086,0.00084,67802.0,67801.0,2.40637102]
[1721695636351,1e-06,67802.0,67801.0,2.40637102]
[1721695636584,0.0015,67803.0,67802.0,2.03554502]
[1721695636585,1e-06,67803.0,67802.0,2.03554502]
[1721695636812,1e-06,67803.0,67802.0,2.30663902]
[1721695637066,1e-06,67803.0,67802.0,2.34136379]
[1721695637293,1e-06,67803.0,67802.0,2.33813129]
[1721695637556,1e-06,67803.0,67802.0,2.39282992]
[1721695638310,1e-06,67803.0,67802.0,2.59672992]
[1721695638798,1e-06,67803.0,67802.0,2.55921115]
[1721695639255,1e-06,67803.0,67802.0,2.52492488]
[1721695639758,1e-06,67803.0,67802.0,2.53892488]
[1721695641671,1e-06,67811.0,67810.0,1.63533502]
[1721695641955,0.00084,67833.0,67832.0,0.73807315]
[1721695642215,0.00084,67833.0,67832.0,1.32776515]
[1721695642447,0.00084,67833.0,67832.0,1.42211197]
[1721695642711,0.00084,67833.0,67832.0,1.80720084]
[1721695642944,0.00084,67839.0,67838.0,1.56754815]
[1721695643177,0.00084,67839.0,67838.0,1.90089102]